bitfinex/quotes_BTCUSD_20240101
["timestamp","ask_amount","ask_price","bid_price","bid_amount"]
[1704102665262,1.39000626,42672.0,42671.0,0.0408088]
[1704102665471,1.44196626,42672.0,42671.0,0.0408088]
[1704102665865,1.44195684,42672.0,42671.0,0.0408088]
[1704102666076,0.468702,42671.0,42669.0,0.003]
[1704102666297,1.29715791,42670.0,42669.0,0.2437]
[1704102666429,1.29715791,42670.0,42669.0,0.003]
[1704102666627,1.35925791,42670.0,42669.0,0.003]
[1704102667761,1.36525791,42670.0,42669.0,0.004]
[1704102667972,1.37125791,42670.0,42669.0,0.004]
[1704102668179,1.30915791,42670.0,42669.0,0.004]
[1704102668419,1.03693011,42670.0,42669.0,0.004]
[1704102669016,1.03093011,42670.0,42669.0,0.004]
[1704102669229,0.797713,42670.0,42669.0,0.004]
[1704102669442,0.797713,42670.0,42669.0,0.09919229]
[1704102669651,0.803713,42670.0,42669.0,0.09919229]
[1704102675331,0.803713,42670.0,42669.0,0.23429618]
[1704102675555,0.780713,42670.0,42669.0,0.23429618]
[1704102678212,0.480713,42670.0,42669.0,0.24429618]
[1704102684984,0.012,42670.0,42669.0,0.24429618]
[1704102685193,0.012,42670.0,42669.0,0.29124618]
[1704102685815,0.006,42670.0,42669.0,0.29024618]
[1704102686016,0.012,42670.0,42669.0,0.29124618]
[1704102686454,0.006,42670.0,42669.0,0.29124618]
[1704102686662,0.468687,42673.0,42672.0,0.27724618]
[1704102686858,0.468687,42673.0,42672.0,0.28724618]
[1704102688875,0.468687,42673.0,42672.0,0.28924618]
[1704102689277,0.468687,42673.0,42672.0,0.29124618]
[1704102697238,0.468652,42676.0,42675.0,0.23029618]
[1704102697534,0.01793,42680.0,42679.0,0.09519229]
[1704102697816,0.809533,42680.0,42679.0,0.09519229]
[1704102698061,0.83826245,42680.0,42679.0,0.34769229]
[1704102698284,0.809533,42680.0,42679.0,0.34769229]
[1704102699471,0.768603,42680.0,42679.0,0.48279618]
[1704102699683,0.768603,42680.0,42679.0,0.23029618]
[1704102700166,0.777603,42680.0,42679.0,0.23129618]
[1704102700402,0.786603,42680.0,42679.0,0.48569618]
[1704102701069,0.486603,42680.0,42679.0,0.49569618]
[1704102701752,0.486603,42680.0,42679.0,0.54264618]
[1704102702396,0.477603,42680.0,42679.0,0.54164618]
[1704102702605,0.486603,42680.0,42679.0,0.54264618]
[1704102703302,0.46910195,42680.0,42679.0,0.54164618]
[1704102703520,0.468603,42680.0,42679.0,0.54464618]
[1704102703976,0.001,42680.0,42679.0,0.54464618]
[1704102704195,0.468579,42683.0,42682.0,0.27724618]
[1704102704411,0.768578,42683.0,42682.0,0.27724618]
[1704102704619,0.768578,42683.0,42682.0,0.53764618]
[1704102705541,0.769578,42683.0,42682.0,0.53764618]
[1704102706204,0.770578,42683.0,42682.0,0.53764618]
[1704102706659,0.470578,42683.0,42682.0,0.53764618]
[1704102706861,0.470578,42683.0,42682.0,0.54764618]
[1704102712116,0.002,42683.0,42682.0,0.54764618]
[1704102713093,0.001,42683.0,42682.0,0.54764618]
[1704102713329,0.3,42692.0,42691.0,0.23029618]
[1704102713555,0.3,42693.0,42692.0,0.09519229]
[1704102713784,0.79146,42693.0,42692.0,0.09519229]
[1704102715151,0.79946,42693.0,42692.0,0.09619229]
[1704102716324,0.77646,42693.0,42692.0,0.23129618]
[1704102716797,0.78546,42693.0,42692.0,0.23229618]
[1704102722124,1.70617375,42693.0,42692.0,0.002]
[1704102722334,1.76016635,42693.0,42692.0,0.002]
[1704102723361,1.82506246,42693.0,42692.0,0.002]
[1704102725446,1.85098246,42693.0,42692.0,0.002]
[1704102726021,1.84275456,42693.0,42692.0,0.002]
[1704102727139,1.82463456,42693.0,42692.0,0.002]
[1704102730036,1.75973845,42693.0,42692.0,0.002]
[1704102731251,1.76439456,42693.0,42692.0,0.002]
[1704102731507,1.81701456,42693.0,42692.0,0.002]
[1704102731679,1.82552608,42693.0,42692.0,0.002]
[1704102734773,1.86216975,42693.0,42692.0,0.002]
[1704102735138,1.86217043,42693.0,42692.0,0.002]
[1704102735364,2.48801814,42693.0,42692.0,0.002]
[1704102735583,2.48801814,42693.0,42687.0,0.04695]
[1704102735584,0.06489611,42690.0,42687.0,0.04695]
[1704102735794,0.93703,42688.0,42687.0,0.04695]
[1704102735979,1.71299222,42688.0,42687.0,0.04695]
[1704102736248,1.79761222,42688.0,42687.0,0.04695]
[1704102736892,1.79761222,42688.0,42687.0,0.04795]
[1704102737089,1.76096787,42688.0,42687.0,0.04795]
[1704102737347,1.76096787,42688.0,42686.0,0.04695]
[1704102737568,0.93084387,42687.0,42686.0,0.04695]
[1704102737790,0.51985787,42687.0,42686.0,0.04695]
[1704102738715,0.98838387,42687.0,42686.0,0.04695]
[1704102739571,0.98838387,42687.0,42686.0,0.29955]
[1704102739786,0.98838387,42687.0,42686.0,0.30055]
[1704102740888,1.00378387,42687.0,42686.0,0.30055]
[1704102741287,0.53525787,42687.0,42686.0,0.30055]
[1704102742604,1.00378387,42687.0,42686.0,0.30055]
[1704102745297,0.53525787,42687.0,42686.0,0.30055]
[1704102745485,1.30378387,42687.0,42686.0,0.30055]
[1704102750055,1.04014311,42687.0,42686.0,0.30055]
[1704102750273,1.25893739,42687.0,42686.0,0.30055]
[1704102750474,1.04014311,42687.0,42686.0,0.30055]
[1704102750688,1.25923807,42687.0,42686.0,0.30055]
[1704102753852,1.30819807,42687.0,42686.0,0.30055]
[1704102754219,1.33039807,42687.0,42686.0,0.30055]
[1704102754466,1.36704627,42687.0,42686.0,0.30055]
[1704102760250,1.36704627,42687.0,42686.0,0.31055]
[1704102760843,1.36704627,42687.0,42686.0,0.30055]
[1704102764396,1.36704627,42687.0,42686.0,0.2536]
[1704102765017,1.83557227,42687.0,42686.0,0.2536]
[1704102765224,2.72757216,42687.0,42686.0,0.001]
[1704102765438,2.75567557,42687.0,42686.0,0.001]
[1704102766022,2.75567557,42687.0,42681.0,0.2416]
[1704102766023,0.06489611,42684.0,42681.0,0.2416]
[1704102766232,0.468581,42682.0,42681.0,0.2416]
[1704102766454,0.95754127,42682.0,42681.0,0.2416]
[1704102766718,0.98054127,42682.0,42681.0,0.2416]
[1704102766949,1.03460127,42682.0,42681.0,0.2416]
[1704102767158,1.03460127,42682.0,42681.0,0.2426]
[1704102767583,1.00295307,42682.0,42681.0,0.2536]
[1704102768669,1.00295307,42682.0,42681.0,0.2526]
[1704102768829,0.94889307,42682.0,42681.0,0.2526]
[1704102769033,1.00715307,42682.0,42681.0,0.2536]
[1704102769633,0.95489307,42682.0,42681.0,0.2536]
[1704102770069,0.95489307,42682.0,42681.0,0.2436]
[1704102770293,1.34842545,42682.0,42681.0,0.2436]
[1704102770687,1.31177307,42682.0,42681.0,0.2436]
[1704102773575,1.25489307,42682.0,42681.0,0.2436]
[1704102773785,0.802581,42682.0,42681.0,0.48389618]
[1704102776292,0.802581,42682.0,42681.0,0.47389618]
[1704102776566,0.802581,42682.0,42681.0,0.48389618]
[1704102776801,1.01964137,42682.0,42681.0,0.48389618]
[1704102777475,1.01822619,42682.0,42681.0,0.48389618]
[1704102778065,0.802581,42682.0,42681.0,0.48389618]
[1704102778287,1.02046979,42682.0,42681.0,0.48389618]
[1704102778533,1.02036242,42682.0,42681.0,0.48389618]
[1704102778955,1.02021848,42682.0,42681.0,0.48389618]
[1704102779588,0.55163748,42682.0,42681.0,0.48389618]
[1704102779801,0.802581,42682.0,42681.0,0.48389618]
[1704102780008,1.04899529,42682.0,42681.0,0.48389618]
[1704102782024,0.83135781,42682.0,42681.0,0.48389618]
[1704102782249,0.36277681,42682.0,42681.0,0.48389618]
[1704102782467,0.53135781,42682.0,42681.0,0.48389618]
[1704102782695,0.83135781,42682.0,42681.0,0.48389618]
[1704102783163,0.36277681,42682.0,42681.0,0.48389618]
[1704102783381,0.83135781,42682.0,42681.0,0.48389618]
[1704102783518,1.05152465,42682.0,42681.0,0.48389618]
[1704102783970,1.05152465,42682.0,42681.0,0.47389618]
[1704102784149,1.05152465,42682.0,42681.0,0.48389618]
[1704102787199,0.83135781,42682.0,42681.0,0.48389618]
[1704102788055,1.0529564,42682.0,42681.0,0.48389618]
[1704102798349,1.08960703,42682.0,42681.0,0.48389618]
[1704102807909,1.14580728,42682.0,42681.0,0.48389618]
[1704102817004,0.67722628,42682.0,42681.0,0.48389618]
[1704102817222,1.14580728,42682.0,42681.0,0.48389618]
[1704102820661,0.67722628,42682.0,42681.0,0.48389618]
[1704102820869,1.14580728,42682.0,42681.0,0.48389618]
[1704102822657,1.0529564,42682.0,42681.0,0.48389618]
[1704102826625,0.011,42682.0,42681.0,0.53084618]
[1704102827375,0.006,42682.0,42681.0,0.52984618]
[1704102827632,0.011,42682.0,42681.0,0.53084618]
[1704102827838,0.006,42682.0,42681.0,0.52984618]
[1704102828036,0.006,42682.0,42681.0,0.62984618]
[1704102828239,0.007,42682.0,42681.0,0.63384618]
[1704102828493,0.006,42682.0,42681.0,0.62984618]
[1704102828909,0.007,42682.0,42681.0,0.63684618]
[1704102829320,0.001,42682.0,42681.0,0.63584618]
[1704102829732,0.007,42682.0,42681.0,0.63684618]
[1704102830159,0.001,42682.0,42681.0,0.63584618]
[1704102830583,0.002,42682.0,42681.0,0.64184618]
[1704102830996,0.002,42682.0,42681.0,0.97506329]
[1704102833089,0.002,42682.0,42681.0,1.07506329]
[1704102834326,0.002,42682.0,42681.0,1.12156329]
[1704102840411,0.002,42682.0,42681.0,1.13156329]
[1704102840837,0.002,42682.0,42681.0,1.08506329]
[1704102842529,0.002,42682.0,42681.0,1.14524329]
[1704102844940,0.001,42682.0,42681.0,1.13924329]
[1704102845154,0.468485,42691.0,42690.0,0.28724618]
[1704102847574,0.469485,42691.0,42690.0,0.29224618]
[1704102848654,0.469485,42691.0,42690.0,0.29624618]
[1704102854900,0.469487,42691.0,42690.0,0.29624618]
[1704102858214,0.001,42691.0,42690.0,0.29624618]
[1704102858421,0.469487,42691.0,42690.0,0.29624618]
[1704102878374,0.001,42691.0,42690.0,0.82946329]
[1704102878626,0.001,42691.0,42690.0,1.12729821]
[1704102878871,0.001,42691.0,42690.0,1.43226417]
[1704102879085,0.001,42691.0,42690.0,1.4822772]
[1704102879290,0.001,42691.0,42690.0,1.20528359]
[1704102879529,0.001,42691.0,42690.0,1.48223005]
[1704102880393,0.001,42691.0,42690.0,1.17729304]
[1704102883303,0.001,42691.0,42690.0,1.12136329]
[1704102890210,0.001,42691.0,42690.0,1.07126329]
[1704102891486,0.001,42691.0,42690.0,0.53804618]
[1704102892525,0.469482,42691.0,42690.0,0.53804618]
[1704102892738,0.469482,42691.0,42690.0,0.29624618]
[1704102894666,0.469482,42691.0,42690.0,0.06595]
[1704102894882,0.469482,42691.0,42690.0,0.29624618]
[1704102897083,0.001,42691.0,42690.0,0.29624618]
[1704102897294,0.469482,42691.0,42690.0,0.29624618]
[1704102900111,0.469482,42691.0,42690.0,0.28624618]
[1704102900346,0.469482,42691.0,42690.0,0.29624618]
[1704102901200,0.001,42691.0,42690.0,0.29624618]
[1704102901410,0.469482,42691.0,42690.0,0.29624618]
[1704102902258,0.469482,42691.0,42690.0,0.05595]
[1704102902481,0.93248606,42691.0,42690.0,0.05595]
[1704102902925,0.98528606,42691.0,42690.0,0.05595]
[1704102903139,0.98528606,42691.0,42690.0,0.05195]
[1704102903354,0.98428606,42691.0,42690.0,0.04695]
[1704102903573,0.98428606,42691.0,42690.0,0.04795]
[1704102903574,0.98828606,42691.0,42690.0,0.04795]
[1704102904059,0.93548606,42691.0,42690.0,0.04795]
[1704102904294,0.93548606,42691.0,42690.0,0.04895]
[1704102904506,0.94048606,42691.0,42690.0,0.04895]
[1704102904935,0.99032606,42691.0,42690.0,0.04795]
[1704102905149,1.08817308,42691.0,42690.0,0.04895]
[1704102905364,0.99532606,42691.0,42690.0,0.04895]
[1704102906003,1.42123013,42691.0,42690.0,0.002]
[1704102906219,1.98740063,42691.0,42690.0,0.002]
[1704102906431,0.06489611,42688.0,42680.0,0.14519229]
[1704102906647,0.06489611,42688.0,42682.0,0.01]
[1704102906648,0.25621711,42687.0,42682.0,0.01]
[1704102906857,0.3,42686.0,42682.0,0.01]
[1704102907067,0.46857,42683.0,42682.0,0.01]
[1704102907290,0.49157,42683.0,42682.0,0.01]
[1704102907496,0.49157,42683.0,42682.0,0.10519229]
[1704102907718,0.49157,42683.0,42682.0,0.10619229]
[1704102908147,0.49157,42683.0,42682.0,0.10519229]
[1704102908577,0.49757,42683.0,42682.0,0.10519229]
[1704102911598,0.51297,42683.0,42682.0,0.10519229]
[1704102916185,0.54048609,42683.0,42682.0,0.10519229]
[1704102923112,0.84048609,42683.0,42682.0,0.10519229]
[1704102925739,1.19121014,42683.0,42682.0,0.10519229]
[1704102925957,1.24365014,42683.0,42682.0,0.10519229]
[1704102926361,1.19053802,42683.0,42682.0,0.10519229]
[1704102927314,0.84048609,42683.0,42682.0,0.10519229]
[1704102927521,1.19346205,42683.0,42682.0,0.10519229]
[1704102929182,1.17806205,42683.0,42682.0,0.24029618]
[1704102929622,1.15506205,42683.0,42682.0,0.24029618]
[1704102931546,1.15506205,42683.0,42682.0,0.10519229]
[1704102931755,1.17806205,42683.0,42682.0,0.10519229]
[1704102935868,1.22336205,42683.0,42682.0,0.10519229]
[1704102936091,1.17806205,42683.0,42682.0,0.10519229]
[1704102937583,1.21471309,42683.0,42682.0,0.10519229]
[1704102938004,1.17806205,42683.0,42682.0,0.10519229]
[1704102939554,1.21471195,42683.0,42682.0,0.10519229]
[1704102939779,1.17806205,42683.0,42682.0,0.10519229]
[1704102940541,1.21471189,42683.0,42682.0,0.10519229]
[1704102942576,1.17806205,42683.0,42682.0,0.10519229]
[1704102943653,1.17806205,42683.0,42682.0,0.09519229]
[1704102943861,1.17806205,42683.0,42682.0,0.10519229]
[1704102949356,1.17806205,42683.0,42682.0,0.24029618]
[1704102949357,1.15506205,42683.0,42682.0,0.24029618]
[1704102950563,0.47457,42683.0,42682.0,0.24029618]
[1704102961565,0.47457,42683.0,42682.0,0.10519229]
[1704102961805,0.89976121,42683.0,42682.0,0.10519229]
[1704102962183,0.84804121,42683.0,42682.0,0.10519229]
[1704102962379,0.89574121,42683.0,42682.0,0.10519229]
[1704102965190,0.84804121,42683.0,42682.0,0.10519229]
[1704102968218,0.37947121,42683.0,42682.0,0.10519229]
[1704102968455,0.49757,42683.0,42682.0,0.10519229]
[1704102968687,0.84804121,42683.0,42682.0,0.10519229]
[1704102968962,0.49757,42683.0,42682.0,0.10519229]
[1704102970325,0.029,42683.0,42682.0,0.10519229]
[1704102970714,0.49757,42683.0,42682.0,0.10519229]
[1704102972172,0.49757,42683.0,42682.0,0.24029618]
[1704102976436,0.06489611,42682.0,42675.0,0.01]
[1704102976638,0.06489611,42682.0,42674.0,0.09519229]
[1704102976639,0.0154,42677.0,42674.0,0.09519229]
[1704102976840,0.468658,42675.0,42674.0,0.23029618]
[1704102977039,0.468611,42680.0,42679.0,0.09519229]
[1704102977242,0.791611,42680.0,42679.0,0.10519229]
[1704102977562,1.12796932,42680.0,42679.0,0.10519229]
[1704102977722,1.12796932,42680.0,42679.0,0.14029618]
[1704102977723,0.791611,42680.0,42679.0,0.14029618]
[1704102977920,0.012,42682.0,42681.0,0.23029618]
[1704102978129,0.34183269,42683.0,42682.0,0.23029618]
[1704102978343,0.49688891,42684.0,42683.0,0.23029618]
[1704102978548,0.81988891,42684.0,42683.0,0.23029618]
[1704102978758,0.81988891,42684.0,42683.0,0.24029618]
[1704102980138,0.82688891,42684.0,42683.0,0.24129618]
[1704102980341,0.83388891,42684.0,42683.0,0.24229618]
[1704102980556,0.81088891,42684.0,42683.0,0.24229618]
[1704102980759,0.014,42684.0,42683.0,0.28924618]
[1704102981587,0.007,42684.0,42683.0,0.28824618]
[1704102981789,0.007,42684.0,42683.0,0.29024618]
[1704102982963,0.3,42687.0,42683.0,0.28924618]
[1704102983215,0.64450041,42687.0,42683.0,0.28924618]
[1704102983391,0.3,42687.0,42683.0,0.28924618]
[1704102983647,0.3,42687.0,42686.0,0.23029618]
[1704102983819,0.6422946,42687.0,42686.0,0.24029618]
[1704102984440,1.1108206,42687.0,42686.0,0.24029618]
[1704102984642,1.1138206,42687.0,42686.0,0.24029618]
[1704102984914,0.771526,42687.0,42686.0,0.24029618]
[1704102985085,0.773526,42687.0,42686.0,0.24029618]
[1704102985292,1.13781474,42687.0,42686.0,0.24029618]
[1704102985669,1.13981474,42687.0,42686.0,0.24029618]
[1704102986468,1.13180565,42687.0,42686.0,0.24029618]
[1704102986669,1.13380565,42687.0,42686.0,0.24029618]
[1704102986887,1.13080565,42687.0,42686.0,0.24029618]
[1704102987086,1.13380565,42687.0,42686.0,0.24029618]
[1704102987528,1.13080565,42687.0,42686.0,0.24029618]
[1704102987972,0.80001794,42687.0,42686.0,0.24029618]
[1704102988369,0.80201794,42687.0,42686.0,0.24029618]
[1704102988722,0.80201794,42687.0,42686.0,0.28724618]
[1704102989419,0.80001794,42687.0,42686.0,0.28724618]
[1704102989671,1.12462608,42687.0,42686.0,0.28724618]
[1704102989872,1.12162608,42687.0,42686.0,0.28724618]
[1704102990077,0.79701794,42687.0,42686.0,0.28724618]
[1704102990229,0.79701794,42687.0,42686.0,0.28824618]
[1704103003451,1.89912595,42687.0,42686.0,0.001]
[1704103003781,1.93577404,42687.0,42686.0,0.001]
[1704103004779,1.99197629,42687.0,42686.0,0.001]
[1704103005184,2.02007442,42687.0,42686.0,0.001]
[1704103005754,1.93577404,42687.0,42686.0,0.001]
[1704103005957,2.02007442,42687.0,42686.0,0.001]
[1704103006642,1.93577404,42687.0,42686.0,0.001]
[1704103006847,1.46724804,42687.0,42686.0,0.001]
[1704103007089,1.55154842,42687.0,42686.0,0.001]
[1704103007654,2.02007442,42687.0,42686.0,0.001]
[1704103007851,1.99197272,42687.0,42686.0,0.001]
[1704103009209,1.93577404,42687.0,42686.0,0.001]
[1704103009418,2.03057239,42687.0,42686.0,0.001]
[1704103009633,1.09352039,42687.0,42686.0,0.001]
[1704103009839,1.56204639,42687.0,42686.0,0.001]
[1704103010215,2.03057239,42687.0,42686.0,0.001]
[1704103010426,1.56204639,42687.0,42686.0,0.001]
[1704103010624,2.03057239,42687.0,42686.0,0.001]
[1704103011666,2.6045123,42687.0,42686.0,0.001]
[1704103011881,2.63261243,42687.0,42686.0,0.001]
[1704103012931,2.65561243,42687.0,42686.0,0.002]
[1704103013143,1.25003443,42687.0,42686.0,0.002]
[1704103013353,2.60309463,42687.0,42686.0,0.001]
[1704103013563,2.61509463,42687.0,42686.0,0.002]
[1704103014207,2.60409463,42687.0,42686.0,0.001]
[1704103014628,2.50269412,42687.0,42686.0,0.002]
[1704103016306,2.58698299,42687.0,42686.0,0.002]
[1704103021739,2.73189226,42687.0,42686.0,0.002]
[1704103022380,2.64760339,42687.0,42686.0,0.002]
[1704103022795,2.73189226,42687.0,42686.0,0.002]
[1704103023231,2.50269412,42687.0,42686.0,0.002]
[1704103023444,2.58698299,42687.0,42686.0,0.002]
[1704103023654,2.50269412,42687.0,42686.0,0.002]
[1704103024326,2.5588755,42687.0,42686.0,0.002]
[1704103027237,2.50269412,42687.0,42686.0,0.002]
[1704103027675,2.5588755,42687.0,42686.0,0.002]
[1704103027903,2.50269412,42687.0,42686.0,0.002]
[1704103028343,2.5588755,42687.0,42686.0,0.002]
[1704103029467,2.78908949,42687.0,42686.0,0.002]
[1704103029683,2.52208688,42687.0,42686.0,0.002]
[1704103029914,2.52208688,42687.0,42673.0,0.6571]
[1704103029915,0.06489611,42683.0,42676.0,0.06]
[1704103030142,0.468603,42680.0,42678.0,0.2509]
[1704103030376,1.33088298,42680.0,42678.0,0.2509]
[1704103030553,1.90658598,42680.0,42678.0,0.2509]
[1704103030837,2.06432296,42680.0,42678.0,0.2509]
[1704103031047,1.35389398,42679.0,42678.0,0.2509]
[1704103031277,1.42121398,42679.0,42678.0,0.2509]
[1704103031488,1.45786893,42679.0,42678.0,0.2509]
[1704103031699,1.42121398,42679.0,42678.0,0.2509]
[1704103032540,1.43021398,42679.0,42678.0,0.2509]
[1704103033850,1.44021398,42679.0,42678.0,0.2509]
[1704103036469,1.47686912,42679.0,42678.0,0.2509]
[1704103040468,1.14780625,42679.0,42678.0,0.2509]
[1704103040694,1.11115111,42679.0,42678.0,0.2509]
[1704103040897,1.91926081,42679.0,42678.0,0.2509]
[1704103044329,0.98203281,42679.0,42678.0,0.2509]
[1704103044553,1.91926081,42679.0,42678.0,0.2509]
[1704103045360,1.90951816,42679.0,42678.0,0.2509]
[1704103045573,1.89626081,42679.0,42678.0,0.2509]
[1704103047711,1.95599689,42679.0,42678.0,0.2509]
[1704103047931,1.48738289,42679.0,42678.0,0.2509]
[1704103048536,1.95599689,42679.0,42678.0,0.2509]
[1704103052655,1.01876889,42679.0,42678.0,0.2509]
[1704103052859,1.48738289,42679.0,42678.0,0.2509]
[1704103053440,0.06970382,42676.0,42672.0,0.04695]
[1704103053649,0.70187711,42675.0,42674.0,0.2387]
[1704103053864,1.87843281,42675.0,42674.0,0.2387]
[1704103054073,1.91683281,42675.0,42674.0,0.2387]
[1704103054279,1.44817281,42675.0,42674.0,0.2387]
[1704103055120,1.45117281,42675.0,42674.0,0.2387]
[1704103055533,1.47921961,42675.0,42674.0,0.2387]
[1704103056814,1.48321961,42675.0,42674.0,0.2387]
[1704103062899,1.5198779,42675.0,42674.0,0.2387]
[1704103063382,1.58477401,42675.0,42674.0,0.2387]
[1704103065691,2.05343401,42675.0,42674.0,0.2387]
[1704103073348,2.08892642,42675.0,42674.0,0.2387]
[1704103073575,2.05343401,42675.0,42674.0,0.2387]
[1704103073790,2.10960592,42675.0,42674.0,0.2387]
[1704103075534,2.05343401,42675.0,42674.0,0.2387]
[1704103075961,2.10965619,42675.0,42674.0,0.2387]
[1704103076377,2.05343401,42675.0,42674.0,0.2387]
[1704103076588,2.10965619,42675.0,42674.0,0.2387]
[1704103081294,1.17233619,42675.0,42674.0,0.2387]
[1704103081705,1.64099419,42675.0,42674.0,0.2387]
[1704103082552,2.10965419,42675.0,42674.0,0.2387]
[1704103083989,2.04475808,42675.0,42674.0,0.2387]
[1704103084193,1.48469808,42675.0,42674.0,0.2387]
[1704103084405,1.46929808,42675.0,42674.0,0.2387]
[1704103084810,1.46930008,42675.0,42674.0,0.2387]
[1704103086281,1.1432025,42675.0,42674.0,0.36899618]
[1704103086435,1.17985849,42675.0,42674.0,0.46899618]
[1704103086640,1.1432025,42675.0,42674.0,0.47899618]
[1704103088058,0.5037068,42675.0,42674.0,0.47899618]
[1704103088444,0.0350468,42675.0,42674.0,0.47899618]
[1704103088662,0.0350468,42675.0,42674.0,0.52594618]
[1704103088663,0.007,42675.0,42674.0,0.52594618]
[1704103089317,0.007,42675.0,42674.0,0.52875618]
[1704103090173,0.003,42675.0,42674.0,0.52875618]
[1704103090599,0.004,42675.0,42674.0,0.52875618]
[1704103091012,0.001,42675.0,42674.0,0.52975618]
[1704103091236,0.002,42675.0,42674.0,0.52975618]
[1704103091448,0.002,42675.0,42674.0,0.52694618]
[1704103094757,0.468621,42679.0,42678.0,0.28724618]
[1704103097149,0.3,42686.0,42684.0,0.13029618]
[1704103097357,0.23321711,42686.0,42684.0,0.14029618]
[1704103097573,0.23321711,42686.0,42685.0,0.2367]
[1704103097773,1.00175411,42686.0,42685.0,0.2367]
[1704103097978,0.768537,42686.0,42685.0,0.36699618]
[1704103098394,0.787537,42686.0,42685.0,0.36699618]
[1704103098805,0.778537,42686.0,42685.0,0.36699618]
[1704103099422,0.80600316,42686.0,42685.0,0.36699618]
[1704103099626,0.79600316,42686.0,42685.0,0.36699618]
[1704103100289,0.80500316,42686.0,42685.0,0.36699618]
[1704103100489,0.81500316,42686.0,42685.0,0.36699618]
[1704103110175,0.86630316,42686.0,42685.0,0.36699618]
[1704103110382,0.81500316,42686.0,42685.0,0.36699618]
[1704103111006,0.86660316,42686.0,42685.0,0.36699618]
[1704103111210,0.81500316,42686.0,42685.0,0.36699618]
[1704103111630,0.86468316,42686.0,42685.0,0.36699618]
[1704103111844,0.81500316,42686.0,42685.0,0.36699618]
[1704103112257,0.86432316,42686.0,42685.0,0.36699618]
[1704103112686,0.81500316,42686.0,42685.0,0.36699618]
[1704103113051,0.86372316,42686.0,42685.0,0.36699618]
[1704103113259,0.81500316,42686.0,42685.0,0.36699618]
[1704103113486,1.14593877,42686.0,42685.0,0.36699618]
[1704103113685,0.81500316,42686.0,42685.0,0.36699618]
[1704103113913,1.14605493,42686.0,42685.0,0.36699618]
[1704103122710,0.67751793,42686.0,42685.0,0.36699618]
[1704103122913,0.81500316,42686.0,42685.0,0.36699618]
[1704103123112,1.14605493,42686.0,42685.0,0.36699618]
[1704103123417,1.18270208,42686.0,42685.0,0.36699618]
[1704103123613,1.14605493,42686.0,42685.0,0.36699618]
[1704103124377,1.18270182,42686.0,42685.0,0.36699618]
[1704103128298,1.98017593,42686.0,42684.0,0.01]
[1704103128530,1.86101177,42685.0,42682.0,0.01]
[1704103128748,0.37703518,42684.0,42682.0,0.01]
[1704103128926,0.738434,42683.0,42682.0,0.01]
[1704103129074,1.64383229,42683.0,42682.0,0.01]
[1704103129275,1.62083229,42683.0,42679.0,0.08205389]
[1704103129482,0.40003518,42682.0,42680.0,0.01]
[1704103129687,0.70180911,42681.0,42680.0,0.01]
[1704103129886,1.0421974,42681.0,42680.0,0.04510389]
[1704103130092,1.1019574,42681.0,42680.0,0.04510389]
[1704103131311,0.6487654,42681.0,42680.0,0.04510389]
[1704103131520,0.77896911,42681.0,42680.0,0.04510389]
[1704103131703,1.1193574,42681.0,42680.0,0.04510389]
[1704103132472,1.1223574,42681.0,42680.0,0.04510389]
[1704103134628,1.0625974,42681.0,42680.0,0.30160389]
[1704103139758,1.09105572,42681.0,42680.0,0.30160389]
[1704103143267,0.75066743,42681.0,42680.0,0.30160389]
[1704103144416,0.50205032,42681.0,42680.0,0.39679618]
[1704103144826,0.473592,42681.0,42680.0,0.39679618]
[1704103145501,0.473592,42681.0,42680.0,0.49679618]
[1704103145502,0.005,42681.0,42680.0,0.49679618]
[1704103145962,0.005,42681.0,42680.0,0.54374618]
[1704103146700,0.002,42681.0,42680.0,0.54374618]
[1704103146955,0.005,42681.0,42680.0,0.54374618]
[1704103147708,0.003,42681.0,42680.0,0.54374618]
[1704103147938,0.004,42681.0,42680.0,0.54474618]
[1704103148168,0.003,42681.0,42680.0,0.54374618]
[1704103148417,0.46857,42683.0,42680.0,0.54374618]
[1704103148655,0.46857,42683.0,42682.0,0.05695]
[1704103151317,0.46957,42683.0,42682.0,0.05695]
[1704103151548,0.46857,42683.0,42682.0,0.05695]
[1704103151920,0.46957,42683.0,42682.0,0.05795]
[1704103155908,0.001,42683.0,42682.0,0.28824618]
[1704103178703,0.001,42683.0,42682.0,0.82146329]
[1704103179710,0.468495,42690.0,42689.0,0.28724618]
[1704103180973,0.469495,42690.0,42689.0,0.29024618]
[1704103182300,0.468495,42690.0,42689.0,0.28724618]
[1704103182505,0.469495,42690.0,42689.0,0.28724618]
[1704103182910,0.469495,42690.0,42689.0,0.29124618]
[1704103183120,0.470495,42690.0,42689.0,0.29324618]
[1704103183924,0.002,42690.0,42689.0,0.29324618]
[1704103206187,0.002,42690.0,42689.0,0.39324618]
[1704103207324,0.002,42690.0,42689.0,0.82646329]
[1704103208662,0.002,42690.0,42689.0,0.88232329]
[1704103209558,0.002,42690.0,42689.0,0.89232329]
[1704103210931,0.001,42690.0,42689.0,0.89032329]
[1704103211132,0.002,42690.0,42689.0,0.89632329]
[1704103211415,0.001,42690.0,42689.0,0.89232329]
[1704103211803,0.002,42690.0,42689.0,0.90332329]
[1704103212358,0.001,42690.0,42689.0,0.95319887]
[1704103212776,0.002,42690.0,42689.0,0.96219887]
[1704103215391,0.002,42690.0,42689.0,0.96228643]
[1704103216404,0.002,42690.0,42689.0,0.90632329]
[1704103217438,0.002,42690.0,42689.0,0.99013666]
[1704103218044,0.002,42690.0,42689.0,0.93427666]
[1704103218461,0.002,42690.0,42689.0,1.21122994]
[1704103223431,0.002,42690.0,42689.0,1.12741657]
[1704103224405,0.002,42690.0,42689.0,1.23916773]
[1704103228458,0.002,42690.0,42689.0,1.28440773]
[1704103228688,0.002,42690.0,42689.0,1.23916773]
[1704103228892,0.002,42690.0,42689.0,1.28440773]
[1704103229490,0.002,42690.0,42689.0,1.23916773]
[1704103230039,0.002,42690.0,42689.0,1.28476773]
[1704103231276,0.002,42690.0,42689.0,1.17301657]
[1704103231699,0.11726979,42702.0,42701.0,0.24029618]
[1704103232116,0.02818164,42703.0,42702.0,0.01]
[1704103232328,0.49653264,42703.0,42702.0,0.01]